[Event "Titled Tuesday Blitz September 21 2021"]
[White "Weetik, Vjacheslav"]
[Black "Babiy, Olga"]
[WhiteFideId "4153472"]
[BlackFideId "14117258"]
[WhiteElo "2469"]
[BlackElo "2253"]
[Result "0-1"]
[Round "08"]
[TimeControl "180+1"]
[Date "2021.09.21"]
[WhiteClock "0:00:02"]
[BlackClock "0:00:11"]

1. e4 {[%clk 0:01:01]}  d6 {[%clk 0:01:28]} 2. d4 {[%clk 0:01:02]}  Nf6 {[%clk 0:01:29]} 3. Nc3 {[%clk 0:01:01]}  e5 {[%clk 0:01:28]} 4. Nge2 {[%clk 0:01:01]}  Nbd7 {[%clk 0:01:28]} 5. h3 {[%clk 0:01:01]}  Be7 {[%clk 0:01:28]} 6. g4 {[%clk 0:01:02]}  O-O {[%clk 0:01:27]} 7. Bg2 {[%clk 0:01:02]}  exd4 {[%clk 0:01:20]} 8. Nxd4 {[%clk 0:01:01]}  Nc5 {[%clk 0:01:20]} 9. O-O {[%clk 0:00:58]}  Re8 {[%clk 0:01:17]} 10. g5 {[%clk 0:00:58]}  Nfd7 {[%clk 0:01:16]} 11. f4 {[%clk 0:00:56]}  Bf8 {[%clk 0:01:09]} 12. b4 {[%clk 0:00:52]}  Ne6 {[%clk 0:01:08]} 13. Nf5 {[%clk 0:00:52]}  a5 {[%clk 0:00:58]} 14. Bb2 {[%clk 0:00:45]}  axb4 {[%clk 0:00:54]} 15. Nd5 {[%clk 0:00:45]}  c6 {[%clk 0:00:54]} 16. Nde3 {[%clk 0:00:36]}  Qb6 {[%clk 0:00:54]} 17. Kh1 {[%clk 0:00:31]}  Ndc5 {[%clk 0:00:45]} 18. Nc4 {[%clk 0:00:30]}  Qc7 {[%clk 0:00:43]} 19. Ncxd6 {[%clk 0:00:28]}  Rd8 {[%clk 0:00:43]} 20. e5 {[%clk 0:00:26]}  Na4 {[%clk 0:00:37]} 21. Bc1 {[%clk 0:00:21]}  Nc3 {[%clk 0:00:36]} 22. Qh5 {[%clk 0:00:19]}  Rxa2 {[%clk 0:00:20]} 23. Rxa2 {[%clk 0:00:18]}  Nxa2 {[%clk 0:00:21]} 24. Be3 {[%clk 0:00:18]}  Nc3 {[%clk 0:00:21]} 25. Bf3 {[%clk 0:00:15]}  Nd5 {[%clk 0:00:21]} 26. Bc1 {[%clk 0:00:14]}  Ndxf4 {[%clk 0:00:21]} 27. Qg4 {[%clk 0:00:14]}  Ng6 {[%clk 0:00:20]} 28. Bb2 {[%clk 0:00:14]}  Nc5 {[%clk 0:00:19]} 29. h4 {[%clk 0:00:13]}  Nd7 {[%clk 0:00:17]} 30. Qg3 {[%clk 0:00:09]}  Nc5 {[%clk 0:00:15]} 31. h5 {[%clk 0:00:09]}  Ne7 {[%clk 0:00:16]} 32. Nh6+ {[%clk 0:00:08]}  gxh6 {[%clk 0:00:15]} 33. gxh6+ {[%clk 0:00:08]}  Ng6 {[%clk 0:00:13]} 34. hxg6 {[%clk 0:00:09]}  fxg6 {[%clk 0:00:13]} 35. Bg2 {[%clk 0:00:05]}  Be6 {[%clk 0:00:13]} 36. Qf2 {[%clk 0:00:05]}  Bxh6 {[%clk 0:00:13]} 37. Qxc5 {[%clk 0:00:05]}  Qe7 {[%clk 0:00:12]} 38. Qxb4 {[%clk 0:00:05]}  Qg5 {[%clk 0:00:11]} 39. Qe4 {[%clk 0:00:04]}  Qh5+ {[%clk 0:00:11]} 40. Kg1 {[%clk 0:00:04]}  Bd5 {[%clk 0:00:12]} 41. Qd4 {[%clk 0:00:02]}  Rf8 {[%clk 0:00:10]} 42. Rxf8+ {[%clk 0:00:02]}  Kxf8 {[%clk 0:00:11]} 43. Bxd5 {[%clk 0:00:02]}  cxd5 {[%clk 0:00:11]} 44. Qxd5 {[%clk 0:00:02]}  Qg4+ {[%clk 0:00:11]} 45. Kf1 {[%clk 0:00:03]}  Qf4+ {[%clk 0:00:10]} 46. Ke2 {[%clk 0:00:03]}  Qe3+ {[%clk 0:00:10]} 47. Kd1 {[%clk 0:00:02]}  Qg1+ {[%clk 0:00:10]} 48. Ke2 {[%clk 0:00:02]}  Qe3+ {[%clk 0:00:10]} 49. Kf1 {[%clk 0:00:02]}  Qf4+ {[%clk 0:00:10]} 50. Kg1 {[%clk 0:00:02]}  Qg3+ {[%clk 0:00:10]} 51. Kh1 {[%clk 0:00:02]}  Qh3+ {[%clk 0:00:10]} 52. Kg1 {[%clk 0:00:02]}  Be3# {[%clk 0:00:11]} 0-1


[Site "https://www.chess.com"]

[Event "Titled Tuesday Blitz September 21 2021"]
[White "Williams, Simon K"]
[Black "Rodchenkov, Vitaly"]
[WhiteFideId "404454"]
[BlackFideId "4152964"]
[WhiteElo "2468"]
[BlackElo "2337"]
[Result "1-0"]
[Round "08"]
[TimeControl "180+1"]
[Date "2021.09.21"]
[WhiteClock "0:01:00"]
[BlackClock "0:00:27"]

1. e4 {[%clk 0:02:33]}  c5 {[%clk 0:00:54]} 2. b4 {[%clk 0:02:24]}  cxb4 {[%clk 0:00:50]} 3. a3 {[%clk 0:02:22]}  d5 {[%clk 0:00:50]} 4. exd5 {[%clk 0:02:22]}  Qxd5 {[%clk 0:00:49]} 5. Nf3 {[%clk 0:02:22]}  Nf6 {[%clk 0:00:49]} 6. axb4 {[%clk 0:02:20]}  e5 {[%clk 0:00:49]} 7. Nc3 {[%clk 0:02:19]}  Qe6 {[%clk 0:00:48]} 8. Nb5 {[%clk 0:02:16]}  Qd7 {[%clk 0:00:45]} 9. Nxe5 {[%clk 0:02:14]}  Qd8 {[%clk 0:00:45]} 10. Bc4 {[%clk 0:02:12]}  Be6 {[%clk 0:00:44]} 11. Bxe6 {[%clk 0:02:11]}  fxe6 {[%clk 0:00:44]} 12. O-O {[%clk 0:02:08]}  Bxb4 {[%clk 0:00:44]} 13. c3 {[%clk 0:02:08]}  Bd6 {[%clk 0:00:43]} 14. Nc4 {[%clk 0:02:02]}  Be7 {[%clk 0:00:42]} 15. Qe2 {[%clk 0:02:01]}  Qd7 {[%clk 0:00:42]} 16. Ne5 {[%clk 0:01:45]}  Qc8 {[%clk 0:00:41]} 17. Nxa7 {[%clk 0:01:20]}  Qc5 {[%clk 0:00:34]} 18. d4 {[%clk 0:01:07]}  Qd5 {[%clk 0:00:34]} 19. Nb5 {[%clk 0:01:02]}  Rxa1 {[%clk 0:00:26]} 20. Nc7+ {[%clk 0:01:01]}  Kd8 {[%clk 0:00:27]} 21. Nxd5 {[%clk 0:01:01]}  exd5 {[%clk 0:00:27]} 22. Nf7+ {[%clk 0:01:00]}  Kd7 {[%clk 0:00:27]} 1-0


[Site "https://www.chess.com"]

[Event "Titled Tuesday Blitz September 21 2021"]
[White "Babazada, Khazar"]
[Black "Nesterov, Arseniy"]
[WhiteFideId "13413554"]
[BlackFideId "24198455"]
[WhiteElo "2315"]
[BlackElo "2494"]
[Result "0-1"]
[Round "09"]
[TimeControl "180+1"]
[Date "2021.09.21"]
[WhiteClock "0:01:01"]
[BlackClock "0:01:25"]

1. c4 {[%clk 0:03:00]}  e5 {[%clk 0:02:59]} 2. Nc3 {[%clk 0:03:00]}  Bb4 {[%clk 0:02:59]} 3. g3 {[%clk 0:03:01]}  Bxc3 {[%clk 0:02:59]} 4. bxc3 {[%clk 0:03:02]}  Nc6 {[%clk 0:02:59]} 5. Bg2 {[%clk 0:03:01]}  Nge7 {[%clk 0:03:00]} 6. d3 {[%clk 0:03:02]}  O-O {[%clk 0:03:00]} 7. Nf3 {[%clk 0:03:02]}  d6 {[%clk 0:03:00]} 8. O-O {[%clk 0:03:02]}  h6 {[%clk 0:02:59]} 9. Rb1 {[%clk 0:03:01]}  Rb8 {[%clk 0:02:59]} 10. Nd2 {[%clk 0:02:57]}  b6 {[%clk 0:02:55]} 11. e4 {[%clk 0:02:53]}  f5 {[%clk 0:02:54]} 12. exf5 {[%clk 0:02:53]}  Bxf5 {[%clk 0:02:55]} 13. Ne4 {[%clk 0:02:53]}  Qd7 {[%clk 0:02:53]} 14. f4 {[%clk 0:02:53]}  Bh3 {[%clk 0:02:52]} 15. Bd2 {[%clk 0:02:51]}  Bxg2 {[%clk 0:02:52]} 16. Kxg2 {[%clk 0:02:51]}  exf4 {[%clk 0:02:50]} 17. Bxf4 {[%clk 0:02:52]}  Ng6 {[%clk 0:02:47]} 18. Qd2 {[%clk 0:02:49]}  Qg4 {[%clk 0:02:38]} 19. Kh1 {[%clk 0:01:59]}  Rbe8 {[%clk 0:02:29]} 20. Rf2 {[%clk 0:01:40]}  Nce5 {[%clk 0:02:23]} 21. Rbf1 {[%clk 0:01:38]}  Nxc4 {[%clk 0:02:15]} 22. Qc2 {[%clk 0:01:29]}  Nce5 {[%clk 0:02:04]} 23. d4 {[%clk 0:01:29]}  Nc4 {[%clk 0:01:49]} 24. Qb3 {[%clk 0:01:10]}  d5 {[%clk 0:01:39]} 25. Nd2 {[%clk 0:01:08]}  Nxf4 {[%clk 0:01:33]} 26. Nxc4 {[%clk 0:01:01]}  dxc4 {[%clk 0:01:25]} 0-1


[Site "https://www.chess.com"]

[Event "Titled Tuesday Blitz September 21 2021"]
[White "Baskin, Robert"]
[Black "Shipov, Sergei"]
[WhiteFideId "24662402"]
[BlackFideId "4113624"]
[WhiteElo "2521"]
[BlackElo "2819"]
[Result "0-1"]
[Round "09"]
[TimeControl "180+1"]
[Date "2021.09.21"]
[WhiteClock "0:00:12"]
[BlackClock "0:01:14"]

1. e4 {[%clk 0:03:00]}  e6 {[%clk 0:02:57]} 2. d4 {[%clk 0:02:59]}  d5 {[%clk 0:02:55]} 3. Nc3 {[%clk 0:03:00]}  h6 {[%clk 0:02:54]} 4. Nf3 {[%clk 0:02:56]}  Nf6 {[%clk 0:02:51]} 5. Bd3 {[%clk 0:02:47]}  Bb4 {[%clk 0:02:51]} 6. e5 {[%clk 0:02:39]}  Ne4 {[%clk 0:02:49]} 7. O-O {[%clk 0:02:39]}  Nxc3 {[%clk 0:02:49]} 8. bxc3 {[%clk 0:02:39]}  Bxc3 {[%clk 0:02:49]} 9. Rb1 {[%clk 0:02:35]}  Nc6 {[%clk 0:02:49]} 10. Rb3 {[%clk 0:02:10]}  Bxd4 {[%clk 0:02:35]} 11. Nxd4 {[%clk 0:02:10]}  Nxd4 {[%clk 0:02:34]} 12. Qg4 {[%clk 0:02:11]}  Nxb3 {[%clk 0:02:27]} 13. cxb3 {[%clk 0:01:25]}  g6 {[%clk 0:02:05]} 14. Bxg6 {[%clk 0:01:21]}  fxg6 {[%clk 0:02:05]} 15. Qxg6+ {[%clk 0:01:20]}  Kd7 {[%clk 0:02:05]} 16. Ba3 {[%clk 0:00:57]}  Qg8 {[%clk 0:01:57]} 17. Qf6 {[%clk 0:00:53]}  Rh7 {[%clk 0:01:58]} 18. Rc1 {[%clk 0:00:49]}  b6 {[%clk 0:01:57]} 19. Bd6 {[%clk 0:00:19]}  c5 {[%clk 0:01:32]} 20. Qh4 {[%clk 0:00:19]}  Bb7 {[%clk 0:01:28]} 21. b4 {[%clk 0:00:19]}  Qg5 {[%clk 0:01:28]} 22. Qxg5 {[%clk 0:00:15]}  hxg5 {[%clk 0:01:27]} 23. bxc5 {[%clk 0:00:16]}  bxc5 {[%clk 0:01:24]} 24. h3 {[%clk 0:00:16]}  Rc8 {[%clk 0:01:23]} 25. Rb1 {[%clk 0:00:16]}  Ba8 {[%clk 0:01:23]} 26. Rb3 {[%clk 0:00:16]}  d4 {[%clk 0:01:23]} 27. Ra3 {[%clk 0:00:17]}  Kc6 {[%clk 0:01:24]} 28. Ra5 {[%clk 0:00:15]}  Kd5 {[%clk 0:01:24]} 29. Kf1 {[%clk 0:00:14]}  Rb7 {[%clk 0:01:21]} 30. Ke2 {[%clk 0:00:14]}  Rb2+ {[%clk 0:01:21]} 31. Kf3 {[%clk 0:00:15]}  Kc4+ {[%clk 0:01:18]} 32. Kg3 {[%clk 0:00:15]}  d3 {[%clk 0:01:19]} 33. Ra4+ {[%clk 0:00:14]}  Kb5 {[%clk 0:01:16]} 34. Ra3 {[%clk 0:00:12]}  d2 {[%clk 0:01:14]} 35. Rd3 {[%clk 0:00:12]}  Kc4 {[%clk 0:01:14]} 0-1


[Site "https://www.chess.com"]

[Event "Titled Tuesday Blitz September 21 2021"]
[White "Belenkaya, Dina"]
[Black "Iskusnyh, Sergei"]
[WhiteFideId "24142654"]
[BlackFideId "4120027"]
[WhiteElo "2247"]
[BlackElo "2492"]
[Result "0-1"]
[Round "09"]
[TimeControl "180+1"]
[Date "2021.09.21"]
[WhiteClock "0:00:45"]
[BlackClock "0:01:23"]

1. Nf3 {[%clk 0:02:48]}  d5 {[%clk 0:02:59]} 2. g3 {[%clk 0:02:49]}  Nf6 {[%clk 0:02:58]} 3. Bg2 {[%clk 0:02:49]}  c6 {[%clk 0:02:58]} 4. O-O {[%clk 0:02:50]}  Bf5 {[%clk 0:02:57]} 5. d4 {[%clk 0:02:51]}  e6 {[%clk 0:02:56]} 6. c3 {[%clk 0:02:51]}  Nbd7 {[%clk 0:02:55]} 7. Nbd2 {[%clk 0:02:50]}  h6 {[%clk 0:02:54]} 8. Re1 {[%clk 0:02:51]}  Be7 {[%clk 0:02:51]} 9. Ne5 {[%clk 0:02:52]}  Nxe5 {[%clk 0:02:49]} 10. dxe5 {[%clk 0:02:53]}  Nd7 {[%clk 0:02:49]} 11. f4 {[%clk 0:02:49]}  O-O {[%clk 0:02:25]} 12. e4 {[%clk 0:02:49]}  dxe4 {[%clk 0:02:25]} 13. Nxe4 {[%clk 0:02:50]}  Nc5 {[%clk 0:02:25]} 14. Nf2 {[%clk 0:02:40]}  Qxd1 {[%clk 0:02:16]} 15. Rxd1 {[%clk 0:02:41]}  Rfd8 {[%clk 0:02:15]} 16. Be3 {[%clk 0:02:41]}  Na4 {[%clk 0:02:15]} 17. g4 {[%clk 0:02:33]}  Bh7 {[%clk 0:02:08]} 18. Ne4 {[%clk 0:02:27]}  Nxb2 {[%clk 0:02:02]} 19. Rxd8+ {[%clk 0:02:25]}  Rxd8 {[%clk 0:02:01]} 20. Bxa7 {[%clk 0:02:25]}  Nd3 {[%clk 0:01:54]} 21. Be3 {[%clk 0:02:18]}  Bxe4 {[%clk 0:01:42]} 22. Bxe4 {[%clk 0:02:18]}  Bc5 {[%clk 0:01:43]} 23. Bxc5 {[%clk 0:02:03]}  Nxc5 {[%clk 0:01:43]} 24. Bg2 {[%clk 0:01:54]}  Rd2 {[%clk 0:01:40]} 25. a4 {[%clk 0:01:49]}  Rc2 {[%clk 0:01:39]} 26. Rb1 {[%clk 0:01:49]}  Rxc3 {[%clk 0:01:38]} 27. a5 {[%clk 0:01:49]}  Rc4 {[%clk 0:01:32]} 28. f5 {[%clk 0:01:35]}  Rxg4 {[%clk 0:01:31]} 29. fxe6 {[%clk 0:01:36]}  fxe6 {[%clk 0:01:30]} 30. Rc1 {[%clk 0:01:03]}  Nd3 {[%clk 0:01:29]} 31. Rc2 {[%clk 0:00:46]}  Ne1 {[%clk 0:01:27]} 32. Re2 {[%clk 0:00:44]}  Rxg2+ {[%clk 0:01:26]} 33. Rxg2 {[%clk 0:00:45]}  Nxg2 {[%clk 0:01:27]} 34. Kxg2 {[%clk 0:00:46]}  Kf7 {[%clk 0:01:27]} 35. Kf3 {[%clk 0:00:46]}  g5 {[%clk 0:01:26]} 36. Ke4 {[%clk 0:00:44]}  h5 {[%clk 0:01:26]} 37. Kd4 {[%clk 0:00:45]}  Ke7 {[%clk 0:01:26]} 38. Kc5 {[%clk 0:00:45]}  Kd7 {[%clk 0:01:25]} 39. Kb6 {[%clk 0:00:44]}  Kc8 {[%clk 0:01:25]} 40. Kc5 {[%clk 0:00:44]}  Kc7 {[%clk 0:01:25]} 41. Kd4 {[%clk 0:00:42]}  b6 {[%clk 0:01:23]} 42. axb6+ {[%clk 0:00:40]}  Kxb6 {[%clk 0:01:23]} 43. Ke4 {[%clk 0:00:41]}  c5 {[%clk 0:01:23]} 44. Kd3 {[%clk 0:00:41]}  Kb5 {[%clk 0:01:22]} 45. Kc3 {[%clk 0:00:41]}  c4 {[%clk 0:01:23]} 46. h4 {[%clk 0:00:42]}  gxh4 {[%clk 0:01:22]} 47. Kd4 {[%clk 0:00:42]}  Kb4 {[%clk 0:01:22]} 48. Ke3 {[%clk 0:00:43]}  c3 {[%clk 0:01:22]} 49. Kf4 {[%clk 0:00:43]}  c2 {[%clk 0:01:22]} 50. Kg5 {[%clk 0:00:44]}  c1=Q+ {[%clk 0:01:22]} 51. Kf6 {[%clk 0:00:45]}  Qc4 {[%clk 0:01:22]} 52. Kg5 {[%clk 0:00:44]}  Qg4+ {[%clk 0:01:21]} 53. Kf6 {[%clk 0:00:44]}  Qf5+ {[%clk 0:01:21]} 54. Ke7 {[%clk 0:00:41]}  Qxe5 {[%clk 0:01:21]} 55. Kd7 {[%clk 0:00:40]}  Qd5+ {[%clk 0:01:21]} 56. Ke7 {[%clk 0:00:41]}  e5 {[%clk 0:01:21]} 57. Kf6 {[%clk 0:00:41]}  e4 {[%clk 0:01:21]} 58. Kg6 {[%clk 0:00:42]}  e3 {[%clk 0:01:21]} 59. Kg7 {[%clk 0:00:42]}  e2 {[%clk 0:01:22]} 60. Kf6 {[%clk 0:00:43]}  e1=Q {[%clk 0:01:22]} 61. Kg6 {[%clk 0:00:44]}  Qee6+ {[%clk 0:01:22]} 62. Kh7 {[%clk 0:00:45]}  Qdd7+ {[%clk 0:01:22]} 63. Kh8 {[%clk 0:00:45]}  Qee8# {[%clk 0:01:23]} 0-1


[Site "https://www.chess.com"]

[Event "Titled Tuesday Blitz September 21 2021"]
[White "Bongo Akanga Ndjila, Barthelemy"]
[Black "Vidruska, Renate"]
[WhiteFideId "10609431"]
[BlackFideId "11601841"]
[WhiteElo "1803"]
[BlackElo "1934"]
[Result "1-0"]
[Round "09"]
[TimeControl "180+1"]
[Date "2021.09.21"]
[WhiteClock "0:00:41"]
[BlackClock "0:00:09"]

1. d4 {[%clk 0:02:58]}  Nf6 {[%clk 0:01:29]} 2. c4 {[%clk 0:02:59]}  e6 {[%clk 0:01:26]} 3. Nc3 {[%clk 0:01:52]}  Bb4 {[%clk 0:01:24]} 4. f3 {[%clk 0:01:52]}  d5 {[%clk 0:01:24]} 5. a3 {[%clk 0:01:51]}  Bxc3+ {[%clk 0:01:23]} 6. bxc3 {[%clk 0:01:52]}  c5 {[%clk 0:01:23]} 7. cxd5 {[%clk 0:01:52]}  Nxd5 {[%clk 0:01:22]} 8. Qd3 {[%clk 0:01:46]}  f5 {[%clk 0:01:21]} 9. e3 {[%clk 0:01:44]}  O-O {[%clk 0:01:20]} 10. Ne2 {[%clk 0:01:42]}  b6 {[%clk 0:01:07]} 11. Ng3 {[%clk 0:01:41]}  Ba6 {[%clk 0:01:05]} 12. Qc2 {[%clk 0:01:39]}  Bxf1 {[%clk 0:01:00]} 13. Rxf1 {[%clk 0:01:34]}  Nd7 {[%clk 0:01:01]} 14. Kf2 {[%clk 0:01:34]}  Rc8 {[%clk 0:01:00]} 15. Kg1 {[%clk 0:01:29]}  cxd4 {[%clk 0:00:58]} 16. exd4 {[%clk 0:01:29]}  Rxc3 {[%clk 0:00:57]} 17. Qe2 {[%clk 0:01:23]}  Qf6 {[%clk 0:00:53]} 18. Bb2 {[%clk 0:01:22]}  Rc7 {[%clk 0:00:30]} 19. Rfe1 {[%clk 0:01:22]}  Rc6 {[%clk 0:00:30]} 20. Rac1 {[%clk 0:01:20]}  Rfc8 {[%clk 0:00:30]} 21. Rxc6 {[%clk 0:01:18]}  Rxc6 {[%clk 0:00:30]} 22. Qd3 {[%clk 0:01:15]}  Nf4 {[%clk 0:00:19]} 23. Qb5 {[%clk 0:01:13]}  Rc7 {[%clk 0:00:17]} 24. d5 {[%clk 0:01:09]}  e5 {[%clk 0:00:17]} 25. Qb3 {[%clk 0:00:57]}  Qd6 {[%clk 0:00:17]} 26. Nxf5 {[%clk 0:00:54]}  Qxd5 {[%clk 0:00:17]} 27. Ne7+ {[%clk 0:00:52]}  Kf8 {[%clk 0:00:17]} 28. Nxd5 {[%clk 0:00:52]}  Nc5 {[%clk 0:00:16]} 29. Qc4 {[%clk 0:00:45]}  Rd7 {[%clk 0:00:08]} 30. Nxf4 {[%clk 0:00:43]}  exf4 {[%clk 0:00:09]} 31. Qxf4+ {[%clk 0:00:41]} 1-0


[Site "https://www.chess.com"]

[Event "Titled Tuesday Blitz September 21 2021"]
[White "Gabrielian, Artur"]
[Black "Zhigalko, Sergei"]
[WhiteFideId "4131002"]
[BlackFideId "13502956"]
[WhiteElo "2489"]
[BlackElo "2662"]
[Result "1-0"]
[Round "09"]
[TimeControl "180+1"]
[Date "2021.09.21"]
[WhiteClock "0:00:46"]
[BlackClock "0:00:01"]

1. e4 {[%clk 0:03:00]}  c5 {[%clk 0:03:00]} 2. Nf3 {[%clk 0:03:00]}  Nc6 {[%clk 0:03:00]} 3. Bb5 {[%clk 0:02:59]}  Nf6 {[%clk 0:03:01]} 4. Nc3 {[%clk 0:02:57]}  Qc7 {[%clk 0:03:01]} 5. O-O {[%clk 0:02:57]}  Nd4 {[%clk 0:03:02]} 6. Re1 {[%clk 0:02:54]}  a6 {[%clk 0:03:01]} 7. Bf1 {[%clk 0:02:53]}  Ng4 {[%clk 0:03:01]} 8. g3 {[%clk 0:02:53]}  Nxf3+ {[%clk 0:03:01]} 9. Qxf3 {[%clk 0:02:53]}  Ne5 {[%clk 0:03:02]} 10. Qe2 {[%clk 0:02:52]}  e6 {[%clk 0:03:02]} 11. d3 {[%clk 0:02:52]}  d6 {[%clk 0:03:02]} 12. f4 {[%clk 0:02:51]}  Nc6 {[%clk 0:03:02]} 13. Qf2 {[%clk 0:02:51]}  Be7 {[%clk 0:03:03]} 14. Be3 {[%clk 0:02:50]}  O-O {[%clk 0:03:02]} 15. Bg2 {[%clk 0:02:51]}  Rb8 {[%clk 0:02:59]} 16. g4 {[%clk 0:02:46]}  b5 {[%clk 0:02:46]} 17. Ne2 {[%clk 0:02:46]}  b4 {[%clk 0:02:45]} 18. Ng3 {[%clk 0:02:46]}  a5 {[%clk 0:02:34]} 19. g5 {[%clk 0:02:46]}  f6 {[%clk 0:02:30]} 20. g6 {[%clk 0:02:14]}  hxg6 {[%clk 0:02:27]} 21. h4 {[%clk 0:02:10]}  f5 {[%clk 0:01:43]} 22. h5 {[%clk 0:02:08]}  gxh5 {[%clk 0:01:43]} 23. Nxh5 {[%clk 0:02:02]}  g6 {[%clk 0:01:22]} 24. exf5 {[%clk 0:01:37]}  Rxf5 {[%clk 0:00:48]} 25. Ng3 {[%clk 0:01:37]}  Bh4 {[%clk 0:00:39]} 26. Qf3 {[%clk 0:01:37]}  Rf7 {[%clk 0:00:28]} 27. Qg4 {[%clk 0:01:26]}  Bxg3 {[%clk 0:00:27]} 28. Qxg3 {[%clk 0:01:21]}  Ne7 {[%clk 0:00:27]} 29. Bf2 {[%clk 0:01:10]}  Bd7 {[%clk 0:00:22]} 30. d4 {[%clk 0:01:01]}  Rbf8 {[%clk 0:00:18]} 31. dxc5 {[%clk 0:01:00]}  dxc5 {[%clk 0:00:18]} 32. Rad1 {[%clk 0:00:59]}  Nf5 {[%clk 0:00:13]} 33. Qg5 {[%clk 0:00:57]}  Rg7 {[%clk 0:00:08]} 34. Re5 {[%clk 0:00:55]}  c4 {[%clk 0:00:03]} 35. Bc5 {[%clk 0:00:55]}  Re8 {[%clk 0:00:02]} 36. Qf6 {[%clk 0:00:49]}  Bc6 {[%clk 0:00:02]} 37. Rxe6 {[%clk 0:00:48]}  Rc8 {[%clk 0:00:01]} 38. Rxc6 {[%clk 0:00:46]} 1-0


[Site "https://www.chess.com"]

[Event "Titled Tuesday Blitz September 21 2021"]
[White "Gelman, Alexander"]
[Black "Gubanov, Oleg"]
[WhiteFideId "4118316"]
[BlackFideId "14115115"]
[WhiteElo "2375"]
[BlackElo "2128"]
[Result "1-0"]
[Round "09"]
[TimeControl "180+1"]
[Date "2021.09.21"]
[WhiteClock "0:00:28"]
[BlackClock "0:00:02"]

1. d4 {[%clk 0:03:00]}  b5 {[%clk 0:02:57]} 2. e4 {[%clk 0:03:00]}  Bb7 {[%clk 0:02:55]} 3. Bd3 {[%clk 0:02:59]}  Nf6 {[%clk 0:02:54]} 4. Qe2 {[%clk 0:02:56]}  c5 {[%clk 0:02:54]} 5. c3 {[%clk 0:02:54]}  cxd4 {[%clk 0:02:54]} 6. cxd4 {[%clk 0:02:54]}  Nc6 {[%clk 0:02:54]} 7. d5 {[%clk 0:02:34]}  Ne5 {[%clk 0:02:52]} 8. Bxb5 {[%clk 0:02:31]}  e6 {[%clk 0:02:41]} 9. f4 {[%clk 0:02:20]}  Ng6 {[%clk 0:02:39]} 10. Nc3 {[%clk 0:02:12]}  Bb4 {[%clk 0:02:27]} 11. dxe6 {[%clk 0:02:01]}  fxe6 {[%clk 0:02:27]} 12. f5 {[%clk 0:02:01]}  exf5 {[%clk 0:02:13]} 13. exf5+ {[%clk 0:01:59]}  Ne7 {[%clk 0:02:13]} 14. Nf3 {[%clk 0:01:43]}  O-O {[%clk 0:02:12]} 15. Qc4+ {[%clk 0:01:41]}  Nfd5 {[%clk 0:02:04]} 16. O-O {[%clk 0:01:40]}  Rc8 {[%clk 0:01:54]} 17. Qb3 {[%clk 0:01:37]}  Bxc3 {[%clk 0:01:53]} 18. bxc3 {[%clk 0:01:37]}  Rxc3 {[%clk 0:01:53]} 19. Qb2 {[%clk 0:01:32]}  Rxf5 {[%clk 0:01:18]} 20. Bd2 {[%clk 0:01:26]}  Qb6+ {[%clk 0:01:09]} 21. Kh1 {[%clk 0:01:26]}  Rc5 {[%clk 0:01:10]} 22. a4 {[%clk 0:01:21]}  a6 {[%clk 0:01:07]} 23. Ne5 {[%clk 0:01:05]}  Rxf1+ {[%clk 0:00:35]} 24. Rxf1 {[%clk 0:01:04]}  axb5 {[%clk 0:00:35]} 25. Nxd7 {[%clk 0:01:00]}  Qd8 {[%clk 0:00:23]} 26. Nxc5 {[%clk 0:01:00]}  Bc8 {[%clk 0:00:13]} 27. axb5 {[%clk 0:00:56]}  Nb6 {[%clk 0:00:14]} 28. Bg5 {[%clk 0:00:53]}  h6 {[%clk 0:00:12]} 29. Bh4 {[%clk 0:00:44]}  Qd6 {[%clk 0:00:07]} 30. Qf2 {[%clk 0:00:39]}  Ned5 {[%clk 0:00:05]} 31. Ne4 {[%clk 0:00:36]}  Qb4 {[%clk 0:00:02]} 32. Qf7+ {[%clk 0:00:34]}  Kh7 {[%clk 0:00:02]} 33. Bf6 {[%clk 0:00:28]} 1-0


[Site "https://www.chess.com"]

[Event "Titled Tuesday Blitz September 21 2021"]
[White "Lysyj, Igor"]
[Black "Kwon, Sehyun"]
[WhiteFideId "4150120"]
[BlackFideId "13203088"]
[WhiteElo "2660"]
[BlackElo "1778"]
[Result "1-0"]
[Round "09"]
[TimeControl "180+1"]
[Date "2021.09.21"]
[WhiteClock "0:01:18"]
[BlackClock "0:00:02"]

1. d4 {[%clk 0:01:49]}  d5 {[%clk 0:02:51]} 2. c4 {[%clk 0:01:49]}  c6 {[%clk 0:02:51]} 3. Nf3 {[%clk 0:01:48]}  Nf6 {[%clk 0:02:52]} 4. g3 {[%clk 0:01:48]}  Bg4 {[%clk 0:02:51]} 5. Ne5 {[%clk 0:01:48]}  Bf5 {[%clk 0:02:48]} 6. Qb3 {[%clk 0:01:47]}  Qb6 {[%clk 0:02:41]} 7. cxd5 {[%clk 0:01:47]}  Nxd5 {[%clk 0:02:38]} 8. Bg2 {[%clk 0:01:47]}  Qxb3 {[%clk 0:02:38]} 9. axb3 {[%clk 0:01:46]}  Nb4 {[%clk 0:02:39]} 10. O-O {[%clk 0:01:46]}  Nc2 {[%clk 0:02:29]} 11. Ra4 {[%clk 0:01:45]}  b5 {[%clk 0:01:59]} 12. Ra5 {[%clk 0:01:41]}  Nxd4 {[%clk 0:01:57]} 13. Be3 {[%clk 0:01:41]}  f6 {[%clk 0:00:49]} 14. Bxd4 {[%clk 0:01:34]}  fxe5 {[%clk 0:00:50]} 15. Bxe5 {[%clk 0:01:34]}  Bd7 {[%clk 0:00:27]} 16. Nc3 {[%clk 0:01:30]}  e6 {[%clk 0:00:17]} 17. Nxb5 {[%clk 0:01:29]}  cxb5 {[%clk 0:00:11]} 18. Bxa8 {[%clk 0:01:27]}  Nc6 {[%clk 0:00:09]} 19. Bxc6 {[%clk 0:01:27]}  Bxc6 {[%clk 0:00:10]} 20. Rxa7 {[%clk 0:01:27]}  Bd5 {[%clk 0:00:07]} 21. Rc1 {[%clk 0:01:25]}  Kd8 {[%clk 0:00:02]} 22. Rcc7 {[%clk 0:01:18]} 1-0


[Site "https://www.chess.com"]